[Event "Early-Titled-Tuesday-Blitz-August-29-2023"]
[Site "Chess.com"]
[Date "2023.08.29"]
[Round "4"]
[White "bazar-wokzal"]
[Black "ProfessorChess101"]
[Result "0-1"]
[WhiteElo "2585"]
[BlackElo "2428"]
[TimeControl "180+1"]
[EndTime "8:40:36 PDT"]
[Termination "ProfessorChess101 won on time"]

1. e4 {[%clk 0:03:00.9]} 1... c5 {[%clk 0:02:57.9]} 2. c3 {[%clk 0:03:00.7]}
2... Nf6 {[%clk 0:02:56.2]} 3. e5 {[%clk 0:03:00.6]} 3... Nd5 {[%clk 0:02:56.7]}
4. d4 {[%clk 0:03:00.5]} 4... cxd4 {[%clk 0:02:56.6]} 5. cxd4 {[%clk 0:02:58.8]}
5... e6 {[%clk 0:02:55.9]} 6. Nc3 {[%clk 0:02:58.6]} 6... Nxc3 {[%clk
0:02:53.3]} 7. bxc3 {[%clk 0:02:59.5]} 7... d6 {[%clk 0:02:54.2]} 8. f4 {[%clk
0:02:59.4]} 8... Qc7 {[%clk 0:02:47.5]} 9. Bd2 {[%clk 0:02:59.2]} 9... b6 {[%clk
0:02:46.4]} 10. Nf3 {[%clk 0:02:59.1]} 10... Be7 {[%clk 0:02:45.4]} 11. Bd3
{[%clk 0:02:58.9]} 11... O-O {[%clk 0:02:44.5]} 12. h4 {[%clk 0:02:58.8]} 12...
h6 {[%clk 0:02:40.2]} 13. Qe2 {[%clk 0:02:57.1]} 13... a5 {[%clk 0:02:39.1]} 14.
Qe4 {[%clk 0:02:54.6]} 14... f5 {[%clk 0:02:18.7]} 15. exf6 {[%clk 0:02:54]}
15... Rxf6 {[%clk 0:02:16.6]} 16. Qxa8 {[%clk 0:02:35.5]} 16... Bb7 {[%clk
0:02:13.6]} 17. Qxb7 {[%clk 0:02:10.4]} 17... Qxb7 {[%clk 0:02:12.6]} 18. O-O
{[%clk 0:02:10]} 18... Nd7 {[%clk 0:01:57]} 19. Rae1 {[%clk 0:02:07.6]} 19...
Nf8 {[%clk 0:01:53]} 20. c4 {[%clk 0:02:03.4]} 20... Rf7 {[%clk 0:01:42.1]} 21.
g4 {[%clk 0:01:53.7]} 21... g6 {[%clk 0:01:18.4]} 22. Kh2 {[%clk 0:01:52.9]}
22... Bd8 {[%clk 0:01:16.9]} 23. Kg3 {[%clk 0:01:35.7]} 23... Qb8 {[%clk
0:01:10.4]} 24. d5 {[%clk 0:01:31.5]} 24... e5 {[%clk 0:00:56.3]} 25. f5 {[%clk
0:01:18.6]} 25... g5 {[%clk 0:00:44.9]} 26. hxg5 {[%clk 0:01:17.3]} 26... hxg5
{[%clk 0:00:45.8]} 27. Bxg5 {[%clk 0:01:09.9]} 27... Nh7 {[%clk 0:00:45.1]} 28.
Bh6 {[%clk 0:00:57.4]} 28... Qc8 {[%clk 0:00:17.3]} 29. Rh1 {[%clk 0:00:49.5]}
29... Qc5 {[%clk 0:00:08.7]} 30. Be3 {[%clk 0:00:48.7]} 30... Qa3 {[%clk
0:00:08.2]} 31. Bb1 {[%clk 0:00:39.8]} 31... Rg7 {[%clk 0:00:08.3]} 32. Rh6
{[%clk 0:00:21.8]} 32... Nf6 {[%clk 0:00:07.7]} 33. g5 {[%clk 0:00:18]} 33... e4
{[%clk 0:00:07.7]} 34. Kf4 {[%clk 0:00:09]} 34... Nxd5+ {[%clk 0:00:05]} 35.
cxd5 {[%clk 0:00:08.7]} 35... exf3 {[%clk 0:00:04.5]} 36. f6 {[%clk 0:00:08.8]}
36... Qb4+ {[%clk 0:00:04.8]} 37. Kxf3 {[%clk 0:00:07.8]} 37... Qxe1 {[%clk
0:00:04.9]} 38. fxg7 {[%clk 0:00:07.2]} 38... Kxg7 {[%clk 0:00:05.8]} 39. Rg6+
{[%clk 0:00:05.3]} 39... Kf7 {[%clk 0:00:05.1]} 40. Be4 {[%clk 0:00:04.7]} 40...
Qf1+ {[%clk 0:00:05.2]} 41. Bf2 {[%clk 0:00:04.8]} 41... Qd1+ {[%clk 0:00:04]}
42. Kg3 {[%clk 0:00:03.9]} 42... Qd2 {[%clk 0:00:03.1]} 43. Re6 {[%clk
0:00:03.2]} 43... Bxg5 {[%clk 0:00:03.5]} 44. Bg6+ {[%clk 0:00:03]} 44... Kg7
{[%clk 0:00:03.1]} 45. Be4 {[%clk 0:00:02.1]} 45... Qf4+ {[%clk 0:00:03.5]} 46.
Kg2 {[%clk 0:00:02.7]} 46... Qg4+ {[%clk 0:00:03.8]} 47. Kf1 {[%clk 0:00:03.3]}
47... Bf6 {[%clk 0:00:03]} 48. Bg2 {[%clk 0:00:02.4]} 48... Qd1+ {[%clk
0:00:02.7]} 49. Be1 {[%clk 0:00:02.1]} 49... Qd3+ {[%clk 0:00:02.6]} 50. Kg1
{[%clk 0:00:02.1]} 50... Bd4+ {[%clk 0:00:02.8]} 51. Kh2 {[%clk 0:00:02.5]}
51... Be5+ {[%clk 0:00:03.4]} 52. Kg1 {[%clk 0:00:02]} 52... Qe3+ {[%clk
0:00:03.8]} 53. Bf2 {[%clk 0:00:02.5]} 53... Qc1+ {[%clk 0:00:04.4]} 54. Bf1
{[%clk 0:00:01.9]} 54... Qg5+ {[%clk 0:00:05.1]} 55. Bg2 {[%clk 0:00:01.7]}
55... Qh5 {[%clk 0:00:05]} 56. Kf1 {[%clk 0:00:01.6]} 56... Qd1+ {[%clk
0:00:05.1]} 57. Be1 {[%clk 0:00:02.2]} 57... Qd3+ {[%clk 0:00:05.2]} 58. Kg1
{[%clk 0:00:02.4]} 58... Qe3+ {[%clk 0:00:04]} 59. Kf1 {[%clk 0:00:02.2]} 59...
Qf4+ {[%clk 0:00:03.1]} 60. Kg1 {[%clk 0:00:02.5]} 60... Bd4+ {[%clk 0:00:03.5]}
61. Kh1 {[%clk 0:00:02.3]} 61... Qg4 {[%clk 0:00:02.7]} 62. Re7+ {[%clk
0:00:01.7]} 62... Kf8 {[%clk 0:00:02.7]} 63. Re6 {[%clk 0:00:01.6]} 63... Qh5+
{[%clk 0:00:03.2]} 0-1

[Event "Early-Titled-Tuesday-Blitz-August-29-2023"]
[Site "Chess.com"]
[Date "2023.08.29"]
[Round "4"]
[White "reniite"]
[Black "AquivaRubinstein"]
[Result "1-0"]
[WhiteElo "2327"]
[BlackElo "2474"]
[TimeControl "180+1"]
[EndTime "8:40:39 PDT"]
[Termination "reniite won by resignation"]

1. e4 {[%clk 0:02:57.6]} 1... Nf6 {[%clk 0:03:00.2]} 2. e5 {[%clk 0:02:55.8]}
2... Nd5 {[%clk 0:03:00.4]} 3. Nc3 {[%clk 0:02:56.7]} 3... e6 {[%clk 0:02:59.9]}
4. Nxd5 {[%clk 0:02:52.1]} 4... exd5 {[%clk 0:03:00.3]} 5. d4 {[%clk 0:02:53]}
5... d6 {[%clk 0:03:00.8]} 6. Nf3 {[%clk 0:02:37.5]} 6... Be7 {[%clk 0:03:00.9]}
7. Bf4 {[%clk 0:02:37.1]} 7... O-O {[%clk 0:03:00.3]} 8. Qd2 {[%clk 0:02:37.3]}
8... c5 {[%clk 0:02:47.8]} 9. exd6 {[%clk 0:02:29]} 9... Bxd6 {[%clk 0:02:47.8]}
10. Bxd6 {[%clk 0:02:28.4]} 10... Qxd6 {[%clk 0:02:47.7]} 11. dxc5 {[%clk
0:02:29.3]} 11... Qxc5 {[%clk 0:02:48.1]} 12. Be2 {[%clk 0:02:29.7]} 12... Nc6
{[%clk 0:02:42.3]} 13. O-O-O {[%clk 0:02:28.4]} 13... Bf5 {[%clk 0:02:22.5]} 14.
c3 {[%clk 0:02:09]} 14... Nb4 {[%clk 0:02:10.8]} 15. b3 {[%clk 0:02:00.8]} 15...
Nxa2+ {[%clk 0:01:25.8]} 16. Kb2 {[%clk 0:01:42.6]} 16... Nxc3 {[%clk 0:01:26]}
17. Qxc3 {[%clk 0:01:41.7]} 17... Qxf2 {[%clk 0:01:26.2]} 18. Rd2 {[%clk
0:01:35.7]} 18... Rac8 {[%clk 0:01:22.2]} 19. Bc4 {[%clk 0:00:48.3]} 19... Qb6
{[%clk 0:00:59.8]} 20. Rxd5 {[%clk 0:00:47.9]} 20... Be6 {[%clk 0:00:55.5]} 21.
Rd4 {[%clk 0:00:38.7]} 21... Bxc4 {[%clk 0:00:50.1]} 22. Rxc4 {[%clk 0:00:38.7]}
22... Rcd8 {[%clk 0:00:32.6]} 23. Rc1 {[%clk 0:00:34.6]} 23... h6 {[%clk
0:00:30.4]} 24. Rc2 {[%clk 0:00:34.7]} 24... Rfe8 {[%clk 0:00:27.8]} 25. Rg4
{[%clk 0:00:34.2]} 25... g6 {[%clk 0:00:23]} 26. Ne5 {[%clk 0:00:28.8]} 26...
Re6 {[%clk 0:00:17.5]} 27. Nc4 {[%clk 0:00:26.6]} 27... Qb5 {[%clk 0:00:15.2]}
28. Rd4 {[%clk 0:00:24.1]} 28... Rde8 {[%clk 0:00:15.1]} 29. Rcd2 {[%clk
0:00:23.1]} 29... Qa6 {[%clk 0:00:10]} 30. Rd6 {[%clk 0:00:20.5]} 30... Rxd6
{[%clk 0:00:08.3]} 31. Rxd6 {[%clk 0:00:21.4]} 31... Qb5 {[%clk 0:00:08.6]} 32.
Rd2 {[%clk 0:00:21.3]} 32... Qa6 {[%clk 0:00:07.4]} 33. Nd6 {[%clk 0:00:20.6]}
33... Rd8 {[%clk 0:00:06]} 34. Qc4 {[%clk 0:00:18.2]} 34... Qxc4 {[%clk
0:00:05.2]} 35. Nxc4 {[%clk 0:00:17.8]} 35... Re8 {[%clk 0:00:05.7]} 36. Kc3
{[%clk 0:00:17.5]} 36... b5 {[%clk 0:00:04.6]} 37. Nd6 {[%clk 0:00:17.6]} 37...
Re5 {[%clk 0:00:03.4]} 38. Kd4 {[%clk 0:00:17.7]} 38... Rh5 {[%clk 0:00:03]} 39.
Nxb5 {[%clk 0:00:17.7]} 39... Rxb5 {[%clk 0:00:02.3]} 40. Kc4 {[%clk 0:00:17.1]}
40... Rb8 {[%clk 0:00:02.5]} 41. h3 {[%clk 0:00:17.5]} 41... Kg7 {[%clk
0:00:02.9]} 42. b4 {[%clk 0:00:18]} 42... h5 {[%clk 0:00:03.3]} 43. Rd7 {[%clk
0:00:18.3]} 43... Rc8+ {[%clk 0:00:02.6]} 44. Kb5 {[%clk 0:00:18.4]} 44... Rc2
{[%clk 0:00:02.7]} 45. Rxa7 {[%clk 0:00:18]} 45... Rxg2 {[%clk 0:00:03]} 46. Ra3
{[%clk 0:00:18.3]} 46... h4 {[%clk 0:00:02.2]} 47. Kb6 {[%clk 0:00:16.7]} 47...
Rg3 {[%clk 0:00:02.7]} 48. Ra2 {[%clk 0:00:17.1]} 48... Rxh3 {[%clk 0:00:03.1]}
49. Rb2 {[%clk 0:00:17.9]} 49... Rd3 {[%clk 0:00:03]} 50. Kc5 {[%clk 0:00:18.2]}
50... h3 {[%clk 0:00:03.1]} 51. b5 {[%clk 0:00:18.8]} 51... Rg3 {[%clk
0:00:03.6]} 52. b6 {[%clk 0:00:19.2]} 52... Rg2 {[%clk 0:00:04.2]} 53. Rb1
{[%clk 0:00:19.2]} 53... Rg5+ {[%clk 0:00:03.8]} 54. Kc6 {[%clk 0:00:19.4]}
54... Re5 {[%clk 0:00:04]} 55. Kd7 {[%clk 0:00:18.9]} 55... Rd5+ {[%clk
0:00:03.5]} 56. Kc6 {[%clk 0:00:19.3]} 56... Rd8 {[%clk 0:00:03.6]} 57. Kc7
{[%clk 0:00:20]} 57... Re8 {[%clk 0:00:04]} 58. b7 {[%clk 0:00:20.6]} 58... g5
{[%clk 0:00:04]} 59. b8=Q {[%clk 0:00:18.4]} 59... Rxb8 {[%clk 0:00:03.5]} 60.
Kxb8 {[%clk 0:00:19.3]} 60... g4 {[%clk 0:00:04.1]} 61. Rh1 {[%clk 0:00:17.5]}
61... f5 {[%clk 0:00:04]} 62. Kc7 {[%clk 0:00:18]} 62... Kg6 {[%clk 0:00:04.6]}
63. Kd6 {[%clk 0:00:18.3]} 63... Kg5 {[%clk 0:00:05.3]} 64. Ke5 {[%clk
0:00:18.7]} 64... f4 {[%clk 0:00:05.8]} 65. Ke4 {[%clk 0:00:17.1]} 65... Kh4
{[%clk 0:00:04.4]} 66. Kxf4 {[%clk 0:00:17.2]} 66... g3 {[%clk 0:00:04.9]} 67.
Kf3 {[%clk 0:00:16.7]} 67... g2 {[%clk 0:00:03.7]} 68. Rc1 {[%clk 0:00:15]}
68... h2 {[%clk 0:00:02.3]} 69. Kxg2 {[%clk 0:00:15.3]} 69... Kg4 {[%clk
0:00:02.4]} 70. Rh1 {[%clk 0:00:16.2]} 70... Kf4 {[%clk 0:00:03.3]} 71. Rxh2
{[%clk 0:00:17.1]} 71... Kg4 {[%clk 0:00:04.2]} 72. Rh3 {[%clk 0:00:17.9]} 72...
Kg5 {[%clk 0:00:05.1]} 73. Rf3 {[%clk 0:00:18.4]} 73... Kg4 {[%clk 0:00:05.4]}
74. Re3 {[%clk 0:00:18.8]} 74... Kg5 {[%clk 0:00:06.3]} 75. Kf2 {[%clk
0:00:19.6]} 75... Kg4 {[%clk 0:00:07.2]} 76. Ke2 {[%clk 0:00:20.2]} 76... Kg5
{[%clk 0:00:08.1]} 77. Rf3 {[%clk 0:00:21]} 77... Kg6 {[%clk 0:00:09]} 78. Ke3
{[%clk 0:00:21.9]} 78... Kg5 {[%clk 0:00:09.9]} 79. Ke4 {[%clk 0:00:22.8]} 79...
Kg6 {[%clk 0:00:10.8]} 80. Rf4 {[%clk 0:00:23.4]} 80... Kg5 {[%clk 0:00:11.7]}
1-0

[Event "Early-Titled-Tuesday-Blitz-August-29-2023"]
[Site "Chess.com"]
[Date "2023.08.29"]
[Round "4"]
[White "guillembaches"]
[Black "Arek_pacitan"]
[Result "1-0"]
[WhiteElo "2443"]
[BlackElo "2608"]
[TimeControl "180+1"]
[EndTime "8:40:41 PDT"]
[Termination "guillembaches won on time"]

1. e4 {[%clk 0:03:00.9]} 1... e5 {[%clk 0:02:56.4]} 2. Nf3 {[%clk 0:03:00.8]}
2... Nc6 {[%clk 0:02:56.2]} 3. Nc3 {[%clk 0:03:01.5]} 3... Nf6 {[%clk 0:02:56]}
4. d4 {[%clk 0:03:02.2]} 4... exd4 {[%clk 0:02:55.9]} 5. Nxd4 {[%clk 0:03:02.9]}
5... Bb4 {[%clk 0:02:56.2]} 6. Nxc6 {[%clk 0:03:03.4]} 6... bxc6 {[%clk
0:02:57.1]} 7. Bd3 {[%clk 0:03:04]} 7... d5 {[%clk 0:02:56.2]} 8. Bd2 {[%clk
0:03:04]} 8... O-O {[%clk 0:02:55.9]} 9. O-O {[%clk 0:03:04.2]} 9... Bxc3 {[%clk
0:02:52]} 10. Bxc3 {[%clk 0:03:05.1]} 10... dxe4 {[%clk 0:02:51.4]} 11. Bxf6
{[%clk 0:03:04.2]} 11... Qxf6 {[%clk 0:02:52.3]} 12. Bxe4 {[%clk 0:03:04.5]}
12... Qxb2 {[%clk 0:02:49.9]} 13. Bxc6 {[%clk 0:03:04.5]} 13... Ba6 {[%clk
0:02:44.1]} 14. Rb1 {[%clk 0:02:14.8]} 14... Qc3 {[%clk 0:02:31.6]} 15. Bxa8
{[%clk 0:02:05]} 15... Bxf1 {[%clk 0:02:29.5]} 16. Qxf1 {[%clk 0:01:52.1]} 16...
Rxa8 {[%clk 0:02:28.1]} 17. Qd3 {[%clk 0:01:50.9]} 17... Qc6 {[%clk 0:02:14.4]}
18. Rd1 {[%clk 0:01:43.1]} 18... g6 {[%clk 0:02:12.3]} 19. Qd5 {[%clk
0:01:41.6]} 19... Qxd5 {[%clk 0:02:03.7]} 20. Rxd5 {[%clk 0:01:41.8]} 20... Rb8
{[%clk 0:02:04.3]} 21. g3 {[%clk 0:01:39]} 21... Kf8 {[%clk 0:02:03.9]} 22. Rc5
{[%clk 0:01:31.5]} 22... Rb7 {[%clk 0:02:04.1]} 23. Kg2 {[%clk 0:01:19.8]} 23...
Ke7 {[%clk 0:02:03.9]} 24. Kf3 {[%clk 0:01:19.8]} 24... Kd6 {[%clk 0:01:59.3]}
25. Ra5 {[%clk 0:01:19.8]} 25... Kc6 {[%clk 0:01:46.4]} 26. h4 {[%clk
0:01:12.7]} 26... h5 {[%clk 0:01:44.8]} 27. Ra6+ {[%clk 0:01:02.8]} 27... Kd5
{[%clk 0:01:41.3]} 28. Ke3 {[%clk 0:00:55.1]} 28... c5 {[%clk 0:01:38.2]} 29.
Kd3 {[%clk 0:00:52.8]} 29... Rc7 {[%clk 0:01:28.1]} 30. Kc3 {[%clk 0:00:38.7]}
30... Re7 {[%clk 0:01:18.4]} 31. Rf6 {[%clk 0:00:36.4]} 31... Rb7 {[%clk
0:01:09.1]} 32. a4 {[%clk 0:00:35.1]} 32... Rc7 {[%clk 0:01:07.3]} 33. a5 {[%clk
0:00:34.2]} 33... Ke5 {[%clk 0:01:05.9]} 34. Ra6 {[%clk 0:00:30.2]} 34... c4
{[%clk 0:01:04.8]} 35. Kd2 {[%clk 0:00:26.5]} 35... Ke4 {[%clk 0:01:01.8]} 36.
Ke2 {[%clk 0:00:26.1]} 36... c3 {[%clk 0:01:00.9]} 37. Rf6 {[%clk 0:00:24.5]}
37... Kd4 {[%clk 0:00:58.4]} 38. a6 {[%clk 0:00:19.3]} 38... Re7+ {[%clk
0:00:57.5]} 39. Kd1 {[%clk 0:00:18.4]} 39... Kc5 {[%clk 0:00:53.7]} 40. f3
{[%clk 0:00:17]} 40... Rd7+ {[%clk 0:00:52.7]} 41. Ke1 {[%clk 0:00:15.1]} 41...
Kb5 {[%clk 0:00:50.4]} 42. g4 {[%clk 0:00:15.2]} 42... Rd2 {[%clk 0:00:36]} 43.
Rxf7 {[%clk 0:00:14.6]} 43... Kxa6 {[%clk 0:00:36.5]} 44. Rf6+ {[%clk
0:00:14.9]} 44... Kb5 {[%clk 0:00:32]} 45. Rxg6 {[%clk 0:00:15.2]} 45... hxg4
{[%clk 0:00:32.2]} 46. fxg4 {[%clk 0:00:14.9]} 46... Rxc2 {[%clk 0:00:29]} 47.
h5 {[%clk 0:00:15]} 47... Rh2 {[%clk 0:00:28.9]} 48. Kd1 {[%clk 0:00:14.7]}
48... a5 {[%clk 0:00:27.7]} 49. h6 {[%clk 0:00:14.9]} 49... a4 {[%clk
0:00:27.8]} 50. g5 {[%clk 0:00:15.1]} 50... a3 {[%clk 0:00:27.6]} 51. Rg8 {[%clk
0:00:15.5]} 51... Kb4 {[%clk 0:00:14.9]} 52. Rb8+ {[%clk 0:00:14.5]} 52... Kc4
{[%clk 0:00:15.3]} 53. Ra8 {[%clk 0:00:14.5]} 53... Kb3 {[%clk 0:00:14.4]} 54.
Rb8+ {[%clk 0:00:14.7]} 54... Ka2 {[%clk 0:00:14.8]} 55. Kc1 {[%clk 0:00:15.1]}
55... Ka1 {[%clk 0:00:07.2]} 56. Rb7 {[%clk 0:00:14.8]} 56... a2 {[%clk
0:00:07.2]} 57. Rb8 {[%clk 0:00:15]} 57... Rb2 {[%clk 0:00:07.1]} 58. Rc8 {[%clk
0:00:15.1]} 58... Rb1+ {[%clk 0:00:04.6]} 59. Kc2 {[%clk 0:00:14.7]} 59... Rh1
{[%clk 0:00:03.4]} 60. Rc7 {[%clk 0:00:09.4]} 1-0

[Event "Early-Titled-Tuesday-Blitz-August-29-2023"]
[Site "Chess.com"]
[Date "2023.08.29"]
[Round "4"]
[White "vladgoncharov"]
[Black "BahadirOzen"]
[Result "1/2-1/2"]
[WhiteElo "2570"]
[BlackElo "2803"]
[TimeControl "180+1"]
[EndTime "8:40:44 PDT"]
[Termination "Game drawn by agreement"]

1. d4 {[%clk 0:03:00.9]} 1... a6 {[%clk 0:02:59.9]} 2. e4 {[%clk 0:02:57.5]}
2... c6 {[%clk 0:03:00.1]} 3. Nf3 {[%clk 0:02:55.8]} 3... d5 {[%clk 0:03:00.3]}
4. Bd3 {[%clk 0:02:55.4]} 4... dxe4 {[%clk 0:02:46.9]} 5. Bxe4 {[%clk
0:02:54.9]} 5... Nf6 {[%clk 0:02:47.8]} 6. Bd3 {[%clk 0:02:51.3]} 6... Bg4
{[%clk 0:02:43.6]} 7. Nbd2 {[%clk 0:02:42.8]} 7... e6 {[%clk 0:02:43.5]} 8. h3
{[%clk 0:02:41.5]} 8... Bh5 {[%clk 0:02:43.4]} 9. c3 {[%clk 0:02:40.6]} 9...
Nbd7 {[%clk 0:02:43.4]} 10. Qe2 {[%clk 0:02:19.9]} 10... Be7 {[%clk 0:02:38.4]}
11. O-O {[%clk 0:02:14]} 11... O-O {[%clk 0:02:36.9]} 12. Ne4 {[%clk 0:02:13.3]}
12... c5 {[%clk 0:02:25.3]} 13. Nxf6+ {[%clk 0:01:53.6]} 13... Nxf6 {[%clk
0:02:24.5]} 14. dxc5 {[%clk 0:01:51]} 14... Bxc5 {[%clk 0:02:23.8]} 15. Bg5
{[%clk 0:01:51.6]} 15... Qd5 {[%clk 0:01:39.5]} 16. Bxf6 {[%clk 0:01:40.2]}
16... Bxf3 {[%clk 0:01:37.6]} 17. gxf3 {[%clk 0:01:29.2]} 17... gxf6 {[%clk
0:01:36.9]} 18. Qe4 {[%clk 0:01:26.6]} 18... Qxe4 {[%clk 0:01:34.6]} 19. fxe4
{[%clk 0:01:21.6]} 19... Rfd8 {[%clk 0:01:32.9]} 20. Rad1 {[%clk 0:01:20.8]}
20... a5 {[%clk 0:01:21.8]} 21. Kg2 {[%clk 0:01:10.3]} 21... Kf8 {[%clk
0:01:21.9]} 22. Kf3 {[%clk 0:01:10.3]} 22... Ke7 {[%clk 0:01:22.6]} 23. Ke2
{[%clk 0:01:10.4]} 23... Rg8 {[%clk 0:01:17.7]} 24. Rg1 {[%clk 0:01:07.6]} 24...
Rad8 {[%clk 0:01:12.9]} 25. Rg4 {[%clk 0:01:06.8]} 25... h5 {[%clk 0:01:08.9]}
26. Rxg8 {[%clk 0:00:49.6]} 26... Rxg8 {[%clk 0:01:09.8]} 27. Kf3 {[%clk
0:00:49.3]} 27... Rg5 {[%clk 0:01:04.1]} 28. a4 {[%clk 0:00:46]} 28... b6 {[%clk
0:00:57.2]} 29. Bb5 {[%clk 0:00:45.4]} 29... Bd6 {[%clk 0:00:57.8]} 30. Rd4
{[%clk 0:00:35.4]} 30... Rc5 {[%clk 0:00:44.4]} 31. Rc4 {[%clk 0:00:28.1]} 31...
Rxc4 {[%clk 0:00:39.5]} 32. Bxc4 {[%clk 0:00:29]} 32... Bc5 {[%clk 0:00:40.3]}
33. Be2 {[%clk 0:00:28.6]} 33... Kf8 {[%clk 0:00:31]} 34. Kf4 {[%clk 0:00:24.1]}
34... h4 {[%clk 0:00:27.2]} 35. Kf3 {[%clk 0:00:19.1]} 35... Kg7 {[%clk
0:00:26.7]} 36. Bb5 {[%clk 0:00:19]} 36... Kg6 {[%clk 0:00:25.9]} 37. Bd3 {[%clk
0:00:18.4]} 37... Kg5 {[%clk 0:00:26]} 38. Be2 {[%clk 0:00:17.3]} 38... f5
{[%clk 0:00:25.7]} 39. exf5 {[%clk 0:00:17.4]} 39... Kxf5 {[%clk 0:00:26.6]} 40.
Bd3+ {[%clk 0:00:17.3]} 40... Ke5 {[%clk 0:00:25.1]} 41. Ke2 {[%clk 0:00:17.5]}
41... f5 {[%clk 0:00:21.6]} 42. Bb5 {[%clk 0:00:17.3]} 42... Kf4 {[%clk
0:00:21]} 43. Bd7 {[%clk 0:00:14.4]} 43... e5 {[%clk 0:00:21.2]} 44. Bc8 {[%clk
0:00:14.6]} 44... e4 {[%clk 0:00:20.3]} 45. Bd7 {[%clk 0:00:14.5]} 45... Ke5
{[%clk 0:00:20.4]} 46. Bc8 {[%clk 0:00:13]} 46... Be7 {[%clk 0:00:18]} 47. Bd7
{[%clk 0:00:11.5]} 47... Bg5 {[%clk 0:00:18.3]} 48. b3 {[%clk 0:00:10.3]} 48...
Bc1 {[%clk 0:00:17.8]} 49. Be8 {[%clk 0:00:08.9]} 49... Bb2 {[%clk 0:00:15.5]}
50. f3 {[%clk 0:00:08.9]} 50... Bxc3 {[%clk 0:00:15.1]} 51. fxe4 {[%clk
0:00:09.2]} 51... Kxe4 {[%clk 0:00:14.3]} 52. Bg6 {[%clk 0:00:09.1]} 52... Bb4
{[%clk 0:00:14.8]} 53. Kf2 {[%clk 0:00:08.1]} 53... Kf4 {[%clk 0:00:15.7]} 54.
Bh7 {[%clk 0:00:07.2]} 54... Bc5+ {[%clk 0:00:16.6]} 55. Kg2 {[%clk 0:00:06.4]}
55... Ke4 {[%clk 0:00:17.2]} 56. Bg6 {[%clk 0:00:06.3]} 56... Bd4 {[%clk
0:00:17.3]} 57. Bh7 {[%clk 0:00:06.5]} 57... Ke5 {[%clk 0:00:17.7]} 58. Kf3
{[%clk 0:00:05.8]} 58... Bc5 {[%clk 0:00:17.7]} 59. Bg6 {[%clk 0:00:06.1]} 59...
Bd6 {[%clk 0:00:16.9]} 60. Be8 {[%clk 0:00:06]} 60... Kd4 {[%clk 0:00:16]} 61.
Bf7 {[%clk 0:00:06.2]} 61... Kc3 {[%clk 0:00:16.2]} 62. Bg8 {[%clk 0:00:06.5]}
62... Kb2 {[%clk 0:00:16]} 63. Be6 {[%clk 0:00:07.1]} 63... Bc7 {[%clk
0:00:16.3]} 64. Bf7 {[%clk 0:00:07.2]} 64... Ka3 {[%clk 0:00:16.4]} 65. Be6
{[%clk 0:00:07.4]} 65... Kb4 {[%clk 0:00:16.8]} 66. Bf7 {[%clk 0:00:07.7]} 66...
Kc5 {[%clk 0:00:17.2]} 67. Be6 {[%clk 0:00:08]} 67... Kb4 {[%clk 0:00:17.6]} 68.
Bf7 {[%clk 0:00:08]} 68... Bb8 {[%clk 0:00:18.2]} 69. Be6 {[%clk 0:00:08.3]}
69... Bd6 {[%clk 0:00:16.8]} 70. Bf7 {[%clk 0:00:08.5]} 70... b5 {[%clk
0:00:17.1]} 71. axb5 {[%clk 0:00:07.8]} 71... Kxb5 {[%clk 0:00:18]} 72. Be6
{[%clk 0:00:08]} 72... Kb4 {[%clk 0:00:18.6]} 73. Bf7 {[%clk 0:00:08.4]} 73...
Bc7 {[%clk 0:00:19.2]} 74. Be6 {[%clk 0:00:08.7]} 74... Kc3 {[%clk 0:00:19.7]}
75. Bf7 {[%clk 0:00:09.1]} 75... Bb8 {[%clk 0:00:19.5]} 76. Be6 {[%clk
0:00:09.4]} 76... Kb4 {[%clk 0:00:19.4]} 77. Bf7 {[%clk 0:00:09.7]} 77... a4
{[%clk 0:00:19.8]} 78. bxa4 {[%clk 0:00:09.2]} 78... Kxa4 {[%clk 0:00:20.7]} 79.
Be6 {[%clk 0:00:09.2]} 79... Bg3 {[%clk 0:00:21.6]} 80. Bxf5 {[%clk 0:00:09.4]}
80... Ka3 {[%clk 0:00:20.6]} 1/2-1/2